[Event "MČR v bleskovém šachu družstev 2019"]
[Site "Teplice, Czech Republic"]
[Date "2019.09.14"]
[Round "15.24"]
[White "Ruzicka, Filip"]
[Black "Duran, Tomas"]
[Result "0-1"]
[TimeControl "3 mim. + 2 s"]
[WhiteFideId "386154"]
[WhiteElo "1798"]
[BlackElo "2135"]

1. b3 {[%clk 00:03:01]} {[%emt 00:00:03]} d6 {[%clk 00:03:01]} {[%emt
00:00:03]} 2. Bb2 {[%clk 00:03:02]} {[%emt 00:00:01]} e5 {[%clk 00:02:56]}
{[%emt 00:00:07]} 3. c4 {[%clk 00:02:59]} {[%emt 00:00:06]} Nf6 {[%clk
00:02:56]} {[%emt 00:00:02]} 4. g3 {[%clk 00:02:59]} {[%emt 00:00:02]} c6
{[%clk 00:02:52]} {[%emt 00:00:06]} 5. Bg2 {[%clk 00:03:00]} {[%emt 00:00:01]}
g6 {[%clk 00:02:50]} {[%emt 00:00:03]} 6. e3 {[%clk 00:02:45]} {[%emt
00:00:17]} Bg7 {[%clk 00:02:49]} {[%emt 00:00:02]} 7. d4 {[%clk 00:02:45]}
{[%emt 00:00:03]} e4 {[%clk 00:02:25]} {[%emt 00:00:27]} 8. Nd2 {[%clk
00:02:35]} {[%emt 00:00:11]} d5 {[%clk 00:02:24]} {[%emt 00:00:04]} 9. Ne2
{[%clk 00:02:32]} {[%emt 00:00:04]} O-O {[%clk 00:02:24]} {[%emt 00:00:03]} 10.
O-O {[%clk 00:02:33]} a5 {[%clk 00:02:14]} {[%emt 00:00:12]} 11. Nc3 {[%clk
00:02:22]} {[%emt 00:00:13]} Bg4 {[%clk 00:02:02]} {[%emt 00:00:14]} 12. Qc2
{[%clk 00:02:21]} {[%emt 00:00:02]} Qd7 {[%clk 00:02:01]} {[%emt 00:00:03]} 13.
a3 {[%clk 00:02:10]} {[%emt 00:00:13]} Na6 {[%clk 00:01:58]} {[%emt 00:00:05]}
14. Na4 {[%clk 00:02:03]} {[%emt 00:00:09]} Qe7 {[%clk 00:01:28]} {[%emt
00:00:33]} 15. cxd5 {[%clk 00:01:42]} {[%emt 00:00:22]} cxd5 {[%clk 00:01:28]}
{[%emt 00:00:02]} 16. Rfc1 {[%clk 00:01:39]} {[%emt 00:00:05]} Rac8 {[%clk
00:01:24]} {[%emt 00:00:07]} 17. Qb1 {[%clk 00:01:32]} {[%emt 00:00:07]} b5
{[%clk 00:01:20]} {[%emt 00:00:07]} 18. Nc3 {[%clk 00:01:28]} {[%emt 00:00:06]}
Qd7 {[%clk 00:01:22]} {[%emt 00:00:01]} 19. Qa2 {[%clk 00:01:08]} {[%emt
00:00:20]} Rc7 {[%clk 00:01:08]} {[%emt 00:00:17]} 20. Rc2 {[%clk 00:01:08]}
Rfc8 {[%clk 00:01:10]} 21. Rac1 {[%clk 00:01:09]} b4 {[%clk 00:01:09]} {[%emt
00:00:05]} 22. axb4 {[%clk 00:01:00]} {[%emt 00:00:09]} Nxb4 {[%clk 00:01:10]}
23. Qxa5 {[%clk 00:00:57]} {[%emt 00:00:08]} Nxc2 {[%clk 00:01:11]} {[%emt
00:00:02]} 24. Rxc2 {[%clk 00:00:57]} {[%emt 00:00:01]} Bh3 {[%clk 00:01:06]}
{[%emt 00:00:08]} 25. Rc1 {[%clk 00:00:39]} {[%emt 00:00:19]} Bxg2 {[%clk
00:00:58]} {[%emt 00:00:10]} 26. Kxg2 {[%clk 00:00:41]} Ra7 {[%clk 00:00:57]}
{[%emt 00:00:03]} 27. Qb4 {[%clk 00:00:36]} {[%emt 00:00:06]} Bf8 {[%clk
00:00:57]} {[%emt 00:00:03]} 28. Qb6 {[%clk 00:00:32]} {[%emt 00:00:06]} Rc6
{[%clk 00:00:51]} {[%emt 00:00:08]} 29. Qb8 {[%clk 00:00:25]} {[%emt 00:00:08]}
Rb7 {[%clk 00:00:48]} {[%emt 00:00:06]} 30. Qa8 {[%clk 00:00:21]} {[%emt
00:00:05]} Kg7 {[%clk 00:00:44]} {[%emt 00:00:08]} 31. Ra1 {[%clk 00:00:22]}
Rc8 {[%clk 00:00:38]} {[%emt 00:00:07]} 32. Qa2 {[%clk 00:00:14]} {[%emt
00:00:09]} Bb4 {[%clk 00:00:38]} {[%emt 00:00:03]} 33. Ndb1 {[%clk 00:00:09]}
{[%emt 00:00:06]} Rcc7 {[%clk 00:00:35]} {[%emt 00:00:06]} 34. Na4 {[%clk
00:00:08]} {[%emt 00:00:03]} Rc2 {[%clk 00:00:32]} {[%emt 00:00:04]} 35. Na3
{[%clk 00:00:06]} {[%emt 00:00:05]} Bxa3 {[%clk 00:00:31]} {[%emt 00:00:04]} 36.
Qxa3 {[%clk 00:00:06]} {[%emt 00:00:02]} Qf5 {[%clk 00:00:30]} {[%emt
00:00:03]} 37. Rf1 {[%clk 00:00:05]} {[%emt 00:00:02]} Qf3+ {[%emt 00:00:05]}
38. Kg1 Ng4 {[%clk 00:00:28]} 39. Nc5 {[%clk 00:00:03]} {[%emt 00:00:06]} Nxe3
{[%clk 00:00:28]} {[%emt 00:00:02]} 40. Nxb7 {[%clk 00:00:03]} {[%emt
00:00:02]} Qg2# {[%clk 00:00:28]} 0-1

[Event "MČR v bleskovém šachu družstev 2019"]
[Site "Teplice, Czech Republic"]
[Date "2019.09.14"]
[Round "15.25"]
[White "Dvorak, Jan"]
[Black "Vojta, Tomas"]
[Result "0-1"]
[TimeControl "3 mim. + 2 s"]
[BlackTitle "FM"]
[WhiteFideId "314870"]
[BlackFideId "308781"]
[WhiteElo "2229"]
[BlackElo "2353"]

1. d4 {[%clk 00:03:01]} {[%emt 00:00:02]} d5 {[%clk 00:03:04]} 2. c4 {[%clk
00:03:02]} {[%emt 00:00:02]} Nc6 {[%clk 00:03:05]} 3. Nf3 {[%clk 00:02:52]}
{[%emt 00:00:14]} Bg4 {[%clk 00:03:06]} 4. Nc3 {[%clk 00:02:44]} {[%emt
00:00:10]} e6 {[%clk 00:03:07]} {[%emt 00:00:01]} 5. e3 {[%clk 00:02:42]}
{[%emt 00:00:04]} Nf6 {[%clk 00:03:06]} {[%emt 00:00:03]} 6. Be2 {[%clk
00:02:38]} {[%emt 00:00:05]} dxc4 {[%clk 00:03:07]} {[%emt 00:00:01]} 7. Qa4
{[%clk 00:02:31]} {[%emt 00:00:09]} Nd5 {[%clk 00:02:55]} {[%emt 00:00:15]} 8.
Qxc4 {[%clk 00:02:24]} {[%emt 00:00:09]} Nb6 {[%clk 00:02:50]} {[%emt
00:00:06]} 9. Qb3 {[%clk 00:02:21]} {[%emt 00:00:05]} a6 {[%clk 00:02:45]}
{[%emt 00:00:07]} 10. O-O {[%clk 00:02:16]} {[%emt 00:00:07]} Bd6 {[%clk
00:02:46]} 11. Ne4 {[%clk 00:02:12]} {[%emt 00:00:07]} O-O {[%clk 00:02:44]}
{[%emt 00:00:05]} 12. Nc5 {[%clk 00:01:58]} {[%emt 00:00:16]} Rb8 {[%clk
00:02:42]} {[%emt 00:00:04]} 13. Rd1 {[%clk 00:01:39]} {[%emt 00:00:20]} Qe7
{[%clk 00:02:41]} {[%emt 00:00:03]} 14. Ne4 {[%clk 00:01:33]} {[%emt 00:00:08]}
e5 {[%clk 00:02:32]} {[%emt 00:00:11]} 15. Nxd6 {[%clk 00:01:05]} {[%emt
00:00:30]} Qxd6 {[%clk 00:02:30]} {[%emt 00:00:04]} 16. d5 {[%clk 00:01:03]}
{[%emt 00:00:04]} Ne7 {[%clk 00:02:15]} {[%emt 00:00:17]} 17. e4 {[%clk
00:01:04]} {[%emt 00:00:01]} Ng6 {[%clk 00:02:07]} {[%emt 00:00:11]} 18. Bd2
{[%clk 00:00:55]} {[%emt 00:00:11]} Rfe8 {[%clk 00:02:08]} {[%emt 00:00:01]} 19.
Bb4 {[%clk 00:00:53]} {[%emt 00:00:03]} Qf6 {[%clk 00:02:08]} {[%emt 00:00:02]}
20. Rac1 {[%clk 00:00:50]} {[%emt 00:00:04]} Nf4 {[%clk 00:02:08]} {[%emt
00:00:03]} 21. Bf1 {[%clk 00:00:49]} {[%emt 00:00:02]} Nh3+ {[%clk 00:02:02]}
{[%emt 00:00:09]} 22. gxh3 {[%clk 00:00:45]} {[%emt 00:00:06]} Bxf3 {[%clk
00:02:03]} {[%emt 00:00:01]} 23. Bg2 {[%clk 00:00:38]} {[%emt 00:00:09]} Bxg2
{[%clk 00:01:41]} {[%emt 00:00:24]} 24. Kxg2 {[%clk 00:00:39]} {[%emt
00:00:02]} Qg6+ {[%clk 00:01:42]} 25. Kf1 {[%clk 00:00:25]} {[%emt 00:00:18]}
Qxe4 {[%clk 00:01:44]} {[%emt 00:00:02]} 26. Rxc7 {[%clk 00:00:20]} {[%emt
00:00:08]} Qh1+ {[%clk 00:01:31]} {[%emt 00:00:14]} 27. Ke2 {[%clk 00:00:21]}
{[%emt 00:00:01]} Qe4+ {[%clk 00:01:32]} 28. Kf1 {[%clk 00:00:21]} {[%emt
00:00:02]} Rbc8 {[%clk 00:01:23]} {[%emt 00:00:11]} 29. Rxc8 {[%clk 00:00:20]}
{[%emt 00:00:03]} Rxc8 {[%clk 00:01:24]} 30. Kg1 {[%clk 00:00:21]} Nc4 {[%clk
00:01:16]} {[%emt 00:00:10]} 31. d6 {[%clk 00:00:20]} {[%emt 00:00:03]} Rd8
{[%clk 00:00:58]} {[%emt 00:00:21]} 32. d7 {[%clk 00:00:19]} {[%emt 00:00:03]}
Nb6 {[%clk 00:00:41]} {[%emt 00:00:19]} 33. Ba5 {[%clk 00:00:13]} {[%emt
00:00:07]} Qg6+ {[%clk 00:00:39]} {[%emt 00:00:03]} 34. Kf1 {[%clk 00:00:11]}
{[%emt 00:00:05]} Rxd7 {[%clk 00:00:37]} {[%emt 00:00:05]} 35. Rxd7 {[%clk
00:00:10]} {[%emt 00:00:02]} Nxd7 {[%clk 00:00:38]} {[%emt 00:00:01]} 36. Qxb7
{[%clk 00:00:11]} {[%emt 00:00:01]} Qd3+ {[%clk 00:00:35]} {[%emt 00:00:05]} 37.
Kg1 {[%clk 00:00:10]} {[%emt 00:00:02]} g6 {[%clk 00:00:35]} {[%emt 00:00:03]}
38. Qc8+ {[%clk 00:00:08]} {[%emt 00:00:03]} Kg7 {[%clk 00:00:36]} {[%emt
00:00:02]} 39. Bc3 {[%clk 00:00:09]} {[%emt 00:00:01]} Qd6 {[%clk 00:00:30]}
{[%emt 00:00:08]} 40. Qc4 {[%clk 00:00:07]} {[%emt 00:00:04]} Nf6 {[%clk
00:00:29]} {[%emt 00:00:03]} 41. Kg2 {[%clk 00:00:06]} {[%emt 00:00:04]} Nd5
{[%clk 00:00:28]} {[%emt 00:00:02]} 42. Qd3 {[%clk 00:00:05]} {[%emt 00:00:03]}
Nf4+ {[%clk 00:00:29]} {[%emt 00:00:02]} 0-1

[Event "MČR v bleskovém šachu družstev 2019"]
[Site "Teplice, Czech Republic"]
[Date "2019.09.14"]
[Round "15.26"]
[White "Zeman, Matyas"]
[Black "Kopta, Pavel"]
[Result "1-0"]
[TimeControl "3 mim. + 2 s"]
[BlackTitle "FM"]
[WhiteFideId "364398"]
[BlackFideId "309109"]
[WhiteElo "2094"]
[BlackElo "2234"]

1. e4 {[%clk 00:03:03]} c5 {[%clk 00:03:04]} {[%emt 00:00:01]} 2. Nf3 {[%clk
00:03:04]} {[%emt 00:00:01]} d6 {[%clk 00:03:05]} 3. Nc3 {[%clk 00:03:05]}
{[%emt 00:00:01]} Nc6 {[%clk 00:03:05]} {[%emt 00:00:02]} 4. d4 {[%clk
00:03:03]} {[%emt 00:00:05]} cxd4 {[%clk 00:03:06]} 5. Nxd4 {[%clk 00:03:04]}
{[%emt 00:00:01]} g6 {[%clk 00:03:03]} {[%emt 00:00:05]} 6. Be2 {[%clk
00:03:03]} {[%emt 00:00:03]} Bg7 {[%clk 00:03:04]} {[%emt 00:00:01]} 7. Be3
{[%clk 00:03:04]} Nf6 {[%clk 00:03:04]} {[%emt 00:00:02]} 8. Nb3 {[%clk
00:02:54]} {[%emt 00:00:10]} Be6 {[%clk 00:03:03]} {[%emt 00:00:05]} 9. O-O
{[%clk 00:02:54]} {[%emt 00:00:02]} O-O {[%clk 00:03:03]} {[%emt 00:00:02]} 10.
f4 {[%clk 00:02:55]} Rc8 {[%clk 00:03:00]} {[%emt 00:00:05]} 11. Bf3 {[%clk
00:02:55]} {[%emt 00:00:02]} Qd7 {[%clk 00:02:41]} {[%emt 00:00:21]} 12. Nd5
{[%clk 00:02:54]} {[%emt 00:00:04]} Rfd8 {[%clk 00:02:16]} {[%emt 00:00:26]} 13.
c3 {[%clk 00:02:53]} {[%emt 00:00:02]} b6 {[%clk 00:02:14]} {[%emt 00:00:04]}
14. h3 {[%clk 00:02:52]} {[%emt 00:00:04]} Bxd5 {[%clk 00:01:28]} {[%emt
00:00:48]} 15. exd5 {[%clk 00:02:53]} Na5 {[%clk 00:01:29]} {[%emt 00:00:01]}
16. Nxa5 {[%clk 00:02:48]} {[%emt 00:00:05]} bxa5 {[%clk 00:01:30]} {[%emt
00:00:02]} 17. Bd4 {[%clk 00:02:44]} {[%emt 00:00:07]} Qb7 {[%clk 00:01:26]}
{[%emt 00:00:05]} 18. Qd2 {[%clk 00:02:29]} {[%emt 00:00:18]} a4 {[%clk
00:01:25]} {[%emt 00:00:03]} 19. Rab1 {[%clk 00:02:26]} {[%emt 00:00:05]} Qb5
{[%clk 00:01:18]} {[%emt 00:00:09]} 20. b3 {[%clk 00:02:24]} {[%emt 00:00:04]}
Rc7 {[%clk 00:01:08]} {[%emt 00:00:12]} 21. c4 {[%clk 00:02:25]} {[%emt
00:00:01]} Qa6 {[%clk 00:01:07]} {[%emt 00:00:02]} 22. Rfe1 {[%clk 00:02:15]}
{[%emt 00:00:13]} Rb8 {[%clk 00:01:06]} {[%emt 00:00:03]} 23. h4 {[%clk
00:02:11]} {[%emt 00:00:05]} h5 {[%clk 00:01:04]} {[%emt 00:00:05]} 24. f5
{[%clk 00:02:12]} {[%emt 00:00:02]} axb3 {[%clk 00:00:50]} {[%emt 00:00:15]} 25.
axb3 {[%clk 00:02:12]} {[%emt 00:00:01]} Qa3 {[%clk 00:00:49]} {[%emt
00:00:04]} 26. fxg6 {[%clk 00:02:08]} {[%emt 00:00:06]} fxg6 {[%emt 00:00:11]}
27. Qd3 {[%clk 00:01:46]} {[%emt 00:00:14]} Kf7 {[%clk 00:00:47]} {[%emt
00:00:05]} 28. Rf1 {[%clk 00:01:34]} {[%emt 00:00:14]} a5 {[%clk 00:00:41]}
{[%emt 00:00:08]} 29. Be4 {[%emt 00:00:10]} a4 {[%clk 00:00:34]} 30. Bxg6+
{[%clk 00:01:36]} Kg8 {[%clk 00:00:35]} 31. Bxf6 {[%clk 00:01:28]} {[%emt
00:00:11]} exf6 {[%clk 00:00:36]} {[%emt 00:00:02]} 32. bxa4 {[%clk 00:01:04]}
{[%emt 00:00:26]} Rxb1 {[%clk 00:00:36]} {[%emt 00:00:01]} 33. Qxa3 {[%clk
00:01:05]} {[%emt 00:00:02]} 1-0

[Event "MČR v bleskovém šachu družstev 2019"]
[Site "Teplice, Czech Republic"]
[Date "2019.09.14"]
[Round "15.27"]
[White "Chmel, Kristian"]
[Black "Svanda, Ondrej"]
[Result "0-1"]
[TimeControl "3 mim. + 2 s"]
[BlackTitle "FM"]
[WhiteFideId "344281"]
[BlackFideId "359670"]
[WhiteElo "2097"]
[BlackElo "1924"]

1. e4 {[%clk 00:03:02]} {[%emt 00:00:02]} c5 {[%clk 00:03:05]} 2. Nf3 {[%clk
00:03:03]} {[%emt 00:00:01]} d6 {[%clk 00:03:06]} {[%emt 00:00:01]} 3. d4
{[%clk 00:03:04]} {[%emt 00:00:01]} cxd4 {[%clk 00:03:07]} {[%emt 00:00:01]} 4.
Nxd4 {[%clk 00:03:05]} {[%emt 00:00:01]} Nf6 {[%clk 00:03:08]} 5. Nc3 {[%clk
00:03:06]} {[%emt 00:00:01]} a6 {[%clk 00:03:10]} 6. Be3 {[%clk 00:03:02]}
{[%emt 00:00:06]} e6 {[%clk 00:03:06]} {[%emt 00:00:06]} 7. g3 {[%clk
00:03:00]} {[%emt 00:00:04]} Be7 {[%clk 00:03:04]} {[%emt 00:00:04]} 8. Bg2
{[%clk 00:03:01]} O-O {[%clk 00:03:04]} {[%emt 00:00:01]} 9. O-O {[%clk
00:03:01]} {[%emt 00:00:02]} Qc7 {[%clk 00:03:05]} {[%emt 00:00:02]} 10. Nb3
{[%clk 00:02:57]} {[%emt 00:00:06]} Nc6 {[%clk 00:03:05]} {[%emt 00:00:02]} 11.
f4 {[%clk 00:02:55]} {[%emt 00:00:04]} Bd7 {[%clk 00:02:48]} {[%emt 00:00:18]}
12. g4 {[%clk 00:02:55]} {[%emt 00:00:02]} Na5 {[%clk 00:02:10]} {[%emt
00:00:41]} 13. Nxa5 {[%clk 00:02:44]} {[%emt 00:00:13]} Qxa5 {[%clk 00:02:11]}
14. g5 {[%clk 00:02:45]} {[%emt 00:00:01]} Ne8 {[%clk 00:02:10]} {[%emt
00:00:03]} 15. Rf3 {[%clk 00:02:38]} {[%emt 00:00:09]} g6 {[%clk 00:01:44]}
{[%emt 00:00:28]} 16. Rh3 {[%clk 00:02:34]} {[%emt 00:00:06]} Ng7 {[%clk
00:01:39]} {[%emt 00:00:06]} 17. Qg4 {[%clk 00:02:18]} {[%emt 00:00:18]} f6
{[%clk 00:01:20]} {[%emt 00:00:22]} 18. Bd4 {[%clk 00:00:57]} {[%emt 00:01:23]}
fxg5 {[%clk 00:01:06]} {[%emt 00:00:15]} 19. Bxg7 {[%clk 00:00:39]} {[%emt
00:00:20]} Kxg7 {[%clk 00:01:03]} {[%emt 00:00:06]} 20. fxg5 {[%clk 00:00:30]}
{[%emt 00:00:11]} Qxg5 {[%clk 00:01:03]} {[%emt 00:00:02]} 21. Qe2 {[%clk
00:00:22]} {[%emt 00:00:09]} Rf4 {[%clk 00:00:55]} {[%emt 00:00:10]} 22. Rg3
{[%clk 00:00:21]} {[%emt 00:00:04]} Qc5+ {[%clk 00:00:56]} 23. Kh1 {[%clk
00:00:21]} {[%emt 00:00:03]} Raf8 {[%clk 00:00:53]} {[%emt 00:00:05]} 24. Rd1
{[%clk 00:00:13]} {[%emt 00:00:10]} Rf2 {[%clk 00:00:39]} {[%emt 00:00:15]} 25.
Qd3 {[%clk 00:00:11]} {[%emt 00:00:05]} Bc6 {[%clk 00:00:27]} {[%emt 00:00:14]}
26. a3 {[%clk 00:00:10]} {[%emt 00:00:03]} Qe5 {[%clk 00:00:24]} {[%emt
00:00:05]} 27. Rg1 {[%clk 00:00:06]} {[%emt 00:00:07]} Bb5 {[%clk 00:00:14]}
{[%emt 00:00:11]} 28. Qd1 {[%clk 00:00:04]} {[%emt 00:00:03]} Bc6 {[%clk
00:00:12]} {[%emt 00:00:04]} 29. Qd3 {[%clk 00:00:05]} Bb5 {[%clk 00:00:14]} 30.
Nxb5 {[%clk 00:00:06]} {[%emt 00:00:01]} Qxb5 {[%clk 00:00:14]} {[%emt
00:00:02]} 31. c4 {[%clk 00:00:06]} {[%emt 00:00:01]} Qxb2 {[%clk 00:00:14]}
{[%emt 00:00:03]} 32. Rb1 {[%clk 00:00:06]} {[%emt 00:00:02]} Qd2 {[%clk
00:00:08]} {[%emt 00:00:08]} 33. Qxd2 {[%clk 00:00:04]} {[%emt 00:00:03]} Rxd2
{[%clk 00:00:09]} 34. h4 {[%clk 00:00:04]} {[%emt 00:00:03]} Rb8 {[%clk
00:00:05]} {[%emt 00:00:06]} 35. c5 {[%clk 00:00:04]} {[%emt 00:00:02]} Bxh4
{[%clk 00:00:06]} 36. Rh3 {[%clk 00:00:04]} {[%emt 00:00:01]} Be7 {[%clk
00:00:07]} {[%emt 00:00:02]} 37. c6 {[%clk 00:00:05]} {[%emt 00:00:01]} b5
{[%clk 00:00:08]} {[%emt 00:00:01]} 38. e5 {[%clk 00:00:05]} {[%emt 00:00:02]}
d5 {[%clk 00:00:08]} 39. Rc3 {[%clk 00:00:06]} {[%emt 00:00:01]} Rc8 {[%clk
00:00:07]} {[%emt 00:00:04]} 40. c7 {[%clk 00:00:06]} {[%emt 00:00:02]} d4
{[%clk 00:00:04]} {[%emt 00:00:05]} 41. Rc6 {[%clk 00:00:06]} {[%emt 00:00:02]}
Re2 {[%clk 00:00:04]} 42. Rbc1 {[%clk 00:00:07]} {[%emt 00:00:02]} Rxe5 {[%clk
00:00:05]} {[%emt 00:00:02]} 43. Rb6 {[%clk 00:00:07]} Rf5 {[%clk 00:00:03]}
{[%emt 00:00:04]} 44. Rb8 {[%clk 00:00:08]} {[%emt 00:00:01]} Rff8 {[%clk
00:00:04]} 45. Rb6 {[%clk 00:00:08]} {[%emt 00:00:02]} Bd8 {[%clk 00:00:03]}
{[%emt 00:00:03]} 46. Bb7 {[%clk 00:00:07]} {[%emt 00:00:02]} Rxc7 {[%clk
00:00:04]} {[%emt 00:00:02]} 47. Rxc7+ {[%clk 00:00:07]} {[%emt 00:00:02]} Bxc7
{[%clk 00:00:05]} {[%emt 00:00:01]} 48. Rxe6 {[%clk 00:00:07]} {[%emt
00:00:02]} Rf7 {[%clk 00:00:06]} {[%emt 00:00:01]} 49. Bxa6 {[%clk 00:00:07]}
{[%emt 00:00:02]} d3 {[%clk 00:00:06]} {[%emt 00:00:02]} 50. Bxb5 {[%clk
00:00:05]} {[%emt 00:00:04]} d2 {[%clk 00:00:07]} 51. Be2 {[%clk 00:00:06]}
{[%emt 00:00:01]} Rf1+ {[%clk 00:00:06]} {[%emt 00:00:03]} 52. Kg2 {[%clk
00:00:07]} d1=Q {[%clk 00:00:06]} {[%emt 00:00:02]} 53. Bxd1 {[%clk 00:00:08]}
{[%emt 00:00:01]} Rxd1 {[%clk 00:00:07]} 54. Re7+ {[%clk 00:00:10]} Kf6 {[%clk
00:00:08]} 55. Rxc7 {[%clk 00:00:11]} h5 {[%clk 00:00:09]} 56. a4 {[%clk
00:00:11]} {[%emt 00:00:02]} Ra1 {[%clk 00:00:10]} 57. Rc6+ {[%clk 00:00:11]}
{[%emt 00:00:02]} Kg5 {[%clk 00:00:12]} 58. Rc5+ {[%clk 00:00:11]} {[%emt
00:00:02]} Kh6 {[%clk 00:00:13]} 59. Rc4 {[%clk 00:00:11]} {[%emt 00:00:02]}
Ra3 {[%clk 00:00:12]} {[%emt 00:00:02]} 60. Kf2 {[%clk 00:00:11]} {[%emt
00:00:02]} g5 {[%clk 00:00:12]} {[%emt 00:00:02]} 61. Rc6+ {[%clk 00:00:12]}
{[%emt 00:00:02]} Kg7 {[%clk 00:00:13]} {[%emt 00:00:01]} 62. Rc5 {[%clk
00:00:11]} {[%emt 00:00:03]} Kg6 {[%clk 00:00:13]} 63. Rc6+ {[%clk 00:00:11]}
{[%emt 00:00:02]} Kf5 {[%clk 00:00:14]} {[%emt 00:00:01]} 64. Rc5+ {[%clk
00:00:09]} {[%emt 00:00:04]} Kg4 {[%clk 00:00:16]} 65. a5 {[%clk 00:00:05]}
{[%emt 00:00:06]} Kh4 {[%clk 00:00:16]} {[%emt 00:00:02]} 66. Kg2 {[%clk
00:00:04]} {[%emt 00:00:02]} Ra2+ {[%clk 00:00:16]} {[%emt 00:00:02]} 67. Kg1
{[%clk 00:00:03]} {[%emt 00:00:03]} g4 {[%clk 00:00:17]} 68. Rb5 {[%clk
00:00:03]} {[%emt 00:00:03]} Ra4 {[%clk 00:00:11]} {[%emt 00:00:08]} 69. Rc5
{[%clk 00:00:03]} {[%emt 00:00:01]} Ra1+ {[%clk 00:00:10]} {[%emt 00:00:04]} 70.
Kg2 {[%clk 00:00:04]} Ra2+ {[%clk 00:00:11]} {[%emt 00:00:01]} 71. Kg1 {[%clk
00:00:05]} {[%emt 00:00:01]} Kg3 {[%clk 00:00:12]} {[%emt 00:00:01]} 72. Rc3+
{[%clk 00:00:05]} {[%emt 00:00:02]} Kf4 {[%clk 00:00:13]} {[%emt 00:00:01]} 73.
Rc4+ {[%clk 00:00:06]} {[%emt 00:00:02]} Kf3 {[%clk 00:00:14]} 74. Rc3+ {[%clk
00:00:06]} Kf4 {[%clk 00:00:14]} {[%emt 00:00:02]} 75. Rc4+ {[%clk 00:00:07]}
Kg5 {[%clk 00:00:15]} 76. Rc5+ {[%clk 00:00:07]} {[%emt 00:00:03]} Kh4 {[%clk
00:00:17]} 77. Rb5 {[%clk 00:00:07]} {[%emt 00:00:02]} Ra3 {[%clk 00:00:15]}
{[%emt 00:00:04]} 78. Rc5 {[%clk 00:00:07]} {[%emt 00:00:02]} Kg3 {[%clk
00:00:14]} {[%emt 00:00:02]} 79. Rc1 {[%clk 00:00:03]} {[%emt 00:00:04]} Rxa5
{[%emt 00:00:04]} 80. Rc3+ {[%clk 00:00:04]} {[%emt 00:00:01]} Kh4 {[%clk
00:00:16]} 81. Kg2 {[%clk 00:00:05]} Ra2+ {[%clk 00:00:17]} 82. Kg1 {[%clk
00:00:06]} {[%emt 00:00:02]} g3 {[%clk 00:00:18]} 83. Rc4+ {[%clk 00:00:03]}
{[%emt 00:00:04]} Kh3 {[%clk 00:00:19]} {[%emt 00:00:01]} 84. Rc1 {[%clk
00:00:04]} {[%emt 00:00:02]} Rg2+ {[%clk 00:00:16]} {[%emt 00:00:05]} 85. Kh1
{[%clk 00:00:05]} {[%emt 00:00:01]} Rb2 {[%clk 00:00:15]} {[%emt 00:00:03]} 86.
Kg1 {[%clk 00:00:05]} h4 {[%clk 00:00:16]} 87. Rd1 {[%clk 00:00:05]} {[%emt
00:00:03]} Ra2 {[%clk 00:00:16]} {[%emt 00:00:02]} 88. Rc1 {[%clk 00:00:06]}
Ra3 {[%clk 00:00:15]} {[%emt 00:00:03]} 89. Rd1 {[%clk 00:00:06]} {[%emt
00:00:02]} Kg4 {[%clk 00:00:16]} {[%emt 00:00:01]} 90. Rd4+ {[%clk 00:00:05]}
{[%emt 00:00:03]} Kf3 {[%clk 00:00:17]} {[%emt 00:00:01]} 91. Rd3+ {[%clk
00:00:05]} {[%emt 00:00:02]} Rxd3 {[%clk 00:00:17]} {[%emt 00:00:02]} 0-1